bitfinex/quotes_BTCUSD_20240902
["timestamp","ask_amount","ask_price","bid_price","bid_amount"]
[1725282702784,0.854057,58544.0,58540.0,0.1]
[1725282702785,0.8541,58541.0,58540.0,0.1]
[1725282703436,0.86075377,58541.0,58540.0,0.1]
[1725282704158,0.86075377,58541.0,58540.0,0.123]
[1725282705455,0.86175377,58541.0,58540.0,0.151]
[1725282708781,0.86175377,58541.0,58540.0,0.1580464]
[1725282709837,0.52011377,58541.0,58540.0,0.1580464]
[1725282712183,0.86175377,58541.0,58540.0,0.1580464]
[1725282715345,1.20339377,58541.0,58540.0,0.1580464]
[1725282715599,1.20339377,58541.0,58540.0,0.1350464]
[1725282716953,1.20239377,58541.0,58540.0,0.1070464]
[1725282717170,1.20239377,58541.0,58540.0,0.1210464]
[1725282717171,1.20339377,58541.0,58540.0,0.1210464]
[1725282717396,1.20339377,58541.0,58540.0,0.1350464]
[1725282719036,1.54503377,58541.0,58540.0,0.1350464]
[1725282719265,1.70876084,58541.0,58540.0,0.0350464]
[1725282719947,1.73554854,58541.0,58540.0,0.0350464]
[1725282720405,1.64062147,58541.0,58540.0,0.1350464]
[1725282721839,1.54503377,58541.0,58540.0,0.1350464]
[1725282722069,1.20339377,58541.0,58540.0,0.1350464]
[1725282722526,0.55993584,58541.0,58540.0,0.1580464]
[1725282722776,0.55993584,58541.0,58540.0,0.2270464]
[1725282725637,0.55993584,58541.0,58540.0,0.1580464]
[1725282726119,0.90157584,58541.0,58540.0,0.1580464]
[1725282726335,0.55993584,58541.0,58540.0,0.1580464]
[1725282726968,0.90157584,58541.0,58540.0,0.1580464]
[1725282728069,0.55993584,58541.0,58540.0,0.1580464]
[1725282728416,0.90157584,58541.0,58540.0,0.1580464]
[1725282731117,0.55993584,58541.0,58540.0,0.1580464]
[1725282731544,0.90157584,58541.0,58540.0,0.1580464]
[1725282748234,1.24321584,58541.0,58540.0,0.1580464]
[1725282749551,1.31571584,58541.0,58540.0,0.1350464]
[1725282750025,1.31764291,58541.0,58540.0,0.1350464]
[1725282750261,1.65928291,58541.0,58540.0,0.1350464]
[1725282750915,1.65735584,58541.0,58540.0,0.1350464]
[1725282751158,1.65928291,58541.0,58540.0,0.1350464]
[1725282752057,1.65735584,58541.0,58540.0,0.1350464]
[1725282752514,1.65928291,58541.0,58540.0,0.1350464]
[1725282755959,1.24321584,58541.0,58540.0,0.1350464]
[1725282785443,0.974993,58541.0,58540.0,0.1350464]
[1725282785667,0.98325944,58541.0,58540.0,0.1350464]
[1725282786115,0.00926644,58541.0,58540.0,1.1621614]
[1725282786358,0.00926644,58541.0,58540.0,1.59812525]
[1725282786596,0.001,58541.0,58540.0,1.5468074]
[1725282787538,0.341563,58555.0,58549.0,0.009]
[1725282787758,0.341563,58555.0,58550.0,0.1841]
[1725282787971,0.170783,58554.0,58551.0,0.099]
[1725282788190,0.00917207,58553.0,58552.0,0.023]
[1725282788424,0.00917207,58553.0,58552.0,0.0300464]
[1725282788425,0.17995707,58553.0,58552.0,0.0300464]
[1725282789302,0.86309707,58553.0,58552.0,0.0300464]
[1725282789537,0.86309707,58553.0,58552.0,0.7300464]
[1725282790015,0.86309707,58553.0,58552.0,0.8300464]
[1725282790239,0.86309707,58553.0,58552.0,0.8370464]
[1725282790677,0.86309707,58553.0,58552.0,0.8510464]
[1725282794937,0.52152707,58553.0,58552.0,0.9203464]
[1725282795430,0.52152707,58553.0,58552.0,0.2203464]
[1725282798335,0.52152707,58553.0,58552.0,0.9203464]
[1725282800383,0.00917207,58553.0,58552.0,0.9203464]
[1725282800600,0.00917207,58553.0,58552.0,1.0145464]
[1725282803571,0.00917207,58553.0,58552.0,2.0145464]
[1725282806791,0.00917207,58553.0,58552.0,2.8774864]
[1725282807013,0.34146,58572.0,58567.0,0.0871]
[1725282807243,0.34146,58572.0,58567.0,0.1871]
[1725282807244,0.341463,58572.0,58567.0,0.1871]
[1725282807495,0.341472,58570.0,58567.0,0.1871]
[1725282807720,0.170741,58568.0,58567.0,0.1871]
[1725282807948,0.170741,58568.0,58567.0,0.2101]
[1725282808186,0.17998254,58568.0,58567.0,0.2101]
[1725282808433,0.17998254,58568.0,58567.0,0.9101]
[1725282808873,0.17998254,58568.0,58567.0,0.2241]
[1725282809090,0.17998254,58568.0,58567.0,0.2101]
[1725282809314,0.86294854,58568.0,58567.0,0.123]
[1725282809535,0.86294854,58568.0,58567.0,0.037]
[1725282809759,0.86294854,58568.0,58567.0,0.137]
[1725282809992,0.86294854,58568.0,58567.0,0.151]
[1725282810257,1.20443154,58568.0,58567.0,0.128]
[1725282810911,1.20443154,58568.0,58567.0,0.028]
[1725282811820,1.20443154,58568.0,58567.0,0.728]
[1725282812043,1.20443154,58568.0,58567.0,0.828]
[1725282812948,0.682966,58568.0,58567.0,0.828]
[1725282813177,1.03486953,58568.0,58567.0,0.828]
[1725282813626,1.20561053,58568.0,58567.0,0.828]
[1725282814333,0.86412753,58568.0,58567.0,1.0138]
[1725282815220,0.01042053,58568.0,58567.0,1.535033]
[1725282815458,0.01042053,58568.0,58567.0,1.193544]
[1725282815680,0.17073,58572.0,58570.0,0.0739]
[1725282815903,0.170732,58571.0,58570.0,0.0739]
[1725282816123,0.170732,58571.0,58570.0,0.7739]
[1725282816369,0.512197,58571.0,58570.0,0.8969]
[1725282816810,0.5119418,58571.0,58570.0,0.8969]
[1725282817240,0.8534068,58571.0,58570.0,0.8969]
[1725282818204,0.8534068,58571.0,58570.0,0.9109]
[1725282819119,0.8534068,58571.0,58570.0,0.9249]
[1725282820262,0.8534068,58571.0,58570.0,0.2249]
[1725282820708,0.52240115,58571.0,58570.0,0.2249]
[1725282823207,0.52240115,58571.0,58570.0,0.9249]
[1725282824054,0.86386615,58571.0,58570.0,0.9249]
[1725282824483,0.52240115,58571.0,58570.0,0.851]
[1725282824710,0.52240115,58571.0,58570.0,0.828]
[1725282824711,1.37873115,58571.0,58570.0,0.828]
[1725282824931,1.38065822,58571.0,58570.0,0.828]
[1725282825159,1.72212322,58571.0,58570.0,0.828]
[1725282825593,1.72212322,58571.0,58570.0,0.814]
[1725282825813,1.72212322,58571.0,58570.0,0.812]
[1725282826032,1.72212322,58571.0,58570.0,0.112]
[1725282826250,1.72212322,58571.0,58570.0,0.026]
[1725282827340,1.72212322,58571.0,58570.0,0.014]
[1725282827792,1.72212322,58571.0,58570.0,0.025]
[1725282828278,1.7476308,58571.0,58570.0,0.025]
[1725282829623,1.40423873,58571.0,58570.0,0.025]
[1725282829841,1.3103658,58571.0,58570.0,0.025]
[1725282830491,1.30743873,58571.0,58570.0,0.025]
[1725282830703,1.3093658,58571.0,58570.0,0.025]
[1725282832648,1.6508308,58571.0,58570.0,0.025]
[1725282832868,1.3093658,58571.0,58570.0,0.025]
[1725282836740,1.2327658,58571.0,58570.0,0.025]
[1725282836978,1.23083873,58571.0,58570.0,0.025]
[1725282837694,1.20533115,58571.0,58570.0,0.025]
[1725282838430,1.20533115,58571.0,58570.0,0.1987]
[1725282839343,1.20533115,58571.0,58570.0,0.2217]
[1725282840310,1.20533115,58571.0,58570.0,0.9217]
[1725282841040,1.20533115,58571.0,58570.0,0.2217]
[1725282842503,1.20533115,58571.0,58570.0,0.148]
[1725282842967,1.20533115,58571.0,58570.0,0.14819103]
[1725282843485,1.20533115,58571.0,58570.0,0.12519103]
[1725282843930,1.20533115,58571.0,58570.0,0.89489103]
[1725282844151,1.20533115,58571.0,58570.0,0.19489103]
[1725282845082,1.20533115,58571.0,58570.0,0.21369103]
[1725282845301,1.20533115,58571.0,58570.0,0.31369103]
[1725282845510,1.20533115,58571.0,58570.0,1.01369103]
[1725282846836,1.20533115,58571.0,58570.0,0.82519103]
[1725282846837,1.27723115,58571.0,58570.0,0.82519103]
[1725282847091,1.44184867,58571.0,58570.0,0.12519103]
[1725282847629,1.537858,58561.0,58560.0,0.04982202]
[1725282847636,1.606758,58561.0,58560.0,0.04982202]
[1725282847638,1.95020907,58561.0,58560.0,0.04982202]
[1725282848037,1.19742207,58553.0,58552.0,0.0070464]
[1725282848245,1.20776318,58553.0,58552.0,0.0070464]
[1725282848452,1.20583611,58553.0,58552.0,0.0070464]
[1725282848873,1.20776318,58553.0,58552.0,0.0070464]
[1725282849361,1.54933318,58553.0,58552.0,0.0070464]
[1725282849568,1.55133318,58553.0,58552.0,0.0200464]
[1725282849745,1.20583611,58553.0,58552.0,0.0070464]
[1725282849980,1.20583611,58553.0,58552.0,0.1763464]
[1725282850185,1.20683611,58553.0,58552.0,0.2893464]
[1725282850602,1.20583611,58553.0,58552.0,0.2763464]
[1725282851033,1.20683611,58553.0,58552.0,0.2893464]
[1725282851467,1.20583611,58553.0,58552.0,0.2763464]
[1725282851686,1.20583611,58553.0,58552.0,0.1170464]
[1725282851896,1.20876318,58553.0,58552.0,0.0170464]
[1725282852555,1.55133318,58553.0,58552.0,0.0290464]
[1725282852966,1.55133318,58553.0,58552.0,0.0170464]
[1725282852967,1.55033318,58553.0,58552.0,0.0170464]
[1725282853168,1.55033318,58553.0,58552.0,0.0290464]
[1725282853169,1.55133318,58553.0,58552.0,0.0290464]
[1725282855795,1.57811422,58553.0,58552.0,0.0290464]
[1725282855999,1.55133318,58553.0,58552.0,0.0290464]
[1725282858144,1.71006579,58553.0,58552.0,0.0290464]
[1725282858983,1.55233318,58553.0,58552.0,0.0290464]
[1725282862479,1.89390318,58553.0,58552.0,0.0290464]
[1725282862701,1.55233318,58553.0,58552.0,0.0290464]
[1725282871459,1.89390318,58553.0,58552.0,0.0290464]
[1725282871921,2.05520318,58553.0,58552.0,0.0290464]
[1725282872147,2.56532482,58553.0,58552.0,4e-07]
[1725282872380,2.39677318,58553.0,58552.0,4e-07]
[1725282872613,2.42355788,58553.0,58552.0,4e-07]
[1725282873115,1.19748507,58550.0,58549.0,0.06]
[1725282873355,1.20766522,58550.0,58549.0,0.06]
[1725282873585,2.23242922,58550.0,58549.0,0.06]
[1725282874022,2.23342922,58550.0,58549.0,0.06]
[1725282874761,2.23342922,58550.0,58549.0,0.061]
[1725282874992,2.23342922,58550.0,58549.0,0.06]
[1725282875900,2.24442922,58550.0,58549.0,0.06]
[1725282876580,2.24842922,58550.0,58549.0,0.06]
[1725282876806,2.24442922,58550.0,58549.0,0.06]
[1725282877257,2.25042922,58550.0,58549.0,0.06]
[1725282885645,2.25042922,58550.0,58549.0,0.131]
[1725282885646,1.90884122,58550.0,58549.0,0.131]
[1725282885895,1.22273815,58550.0,58549.0,0.3254]
[1725282886175,1.22273815,58550.0,58549.0,0.3484]
[1725282886615,1.21173815,58550.0,58549.0,0.3484]
[1725282886867,0.52256215,58550.0,58549.0,0.3484]
[1725282887351,0.52356215,58550.0,58549.0,0.3484]
[1725282887585,0.86415015,58550.0,58549.0,0.3484]
[1725282888055,0.86515015,58550.0,58549.0,0.3484]
[1725282888299,0.86415015,58550.0,58549.0,0.3484]
[1725282888533,0.87515015,58550.0,58549.0,0.3484]
[1725282888759,0.87615015,58550.0,58549.0,0.3484]
[1725282888973,0.86515015,58550.0,58549.0,0.3484]
[1725282889190,0.86515015,58550.0,58549.0,1.0484]
[1725282889423,0.86615015,58550.0,58549.0,1.0514]
[1725282890582,0.86515015,58550.0,58549.0,1.0514]
[1725282890807,0.86615015,58550.0,58549.0,1.0514]
[1725282894275,1.20773815,58550.0,58549.0,1.0514]
[1725282895226,1.20773815,58550.0,58549.0,0.3514]
[1725282895447,1.20673815,58550.0,58549.0,0.3484]
[1725282895706,1.20773815,58550.0,58549.0,0.3504]
[1725282896362,1.20673815,58550.0,58549.0,0.3484]
[1725282896591,1.20773815,58550.0,58549.0,0.3504]
[1725282896813,1.20673815,58550.0,58549.0,0.3504]
[1725282897518,1.20773815,58550.0,58549.0,0.3504]
[1725282901229,1.20966522,58550.0,58549.0,0.3274]
[1725282901521,1.21066522,58550.0,58549.0,0.162]
[1725282901753,1.55225322,58550.0,58549.0,0.062]
[1725282902189,1.59662227,58550.0,58549.0,0.062]
[1725282902396,1.55225322,58550.0,58549.0,0.062]
[1725282906613,1.89384122,58550.0,58549.0,0.062]
[1725282907264,2.05084122,58550.0,58549.0,0.062]
[1725282907709,2.39242922,58550.0,58549.0,0.062]
[1725282907936,2.21939286,58550.0,58549.0,0.062]
[1725282908127,2.21839286,58550.0,58549.0,0.062]
[1725282908409,2.55998086,58550.0,58549.0,0.062]
[1725282908613,2.55998086,58550.0,58549.0,0.06]
[1725282908848,2.58676673,58550.0,58549.0,0.06]
[1725282909073,2.58776673,58550.0,58549.0,0.06]
[1725282910047,2.07662709,58550.0,58549.0,0.06]
[1725282910533,1.92962709,58550.0,58549.0,0.06]
[1725282911013,1.93562709,58550.0,58549.0,0.06]
[1725282911953,1.86526038,58550.0,58549.0,0.06]
[1725282913579,1.83847451,58550.0,58549.0,0.06]
[1725282916909,1.82747451,58550.0,58549.0,0.06]
[1725282917155,2.16906251,58550.0,58549.0,0.06]
[1725282917373,2.31236251,58550.0,58549.0,0.06]
[1725282917623,2.31536251,58550.0,58549.0,0.06]
[1725282918511,2.32636251,58550.0,58549.0,0.06]
[1725282919211,2.31536251,58550.0,58549.0,0.06]
[1725282919861,2.32436251,58550.0,58549.0,0.06]
[1725282920073,2.32436251,58550.0,58549.0,1e-06]
[1725282924385,2.02522814,58550.0,58549.0,1e-06]
[1725282925049,2.36681614,58550.0,58549.0,1e-06]
[1725282926636,2.39241651,58550.0,58549.0,1e-06]
[1725282927106,2.05082851,58550.0,58549.0,1e-06]
[1725282927332,1.90152851,58550.0,58549.0,1e-06]
[1725282928015,2.24311651,58550.0,58549.0,1e-06]
[1725282928504,1.90152851,58550.0,58549.0,1e-06]
[1725282928715,2.24311651,58550.0,58549.0,1e-06]
[1725282929150,1.90152851,58550.0,58549.0,1e-06]
[1725282931392,2.07008015,58550.0,58549.0,1e-06]
[1725282932111,2.41166815,58550.0,58549.0,1e-06]
[1725282932363,2.24311651,58550.0,58549.0,1e-06]
[1725282932783,1.88091907,58542.0,58541.0,0.04965494]
[1725282933276,1.19868807,58540.0,58539.0,0.1]
[1725282933497,1.19868807,58540.0,58535.0,0.1611]
[1725282933498,0.51443207,58536.0,58535.0,0.1611]
[1725282933688,0.85610207,58536.0,58535.0,0.2611]
[1725282933945,1.53944207,58536.0,58535.0,0.2611]
[1725282934171,1.54828374,58536.0,58535.0,0.2611]
[1725282934415,1.88995374,58536.0,58535.0,0.2611]
[1725282935130,1.89095374,58536.0,58535.0,0.2631]
[1725282935359,1.89095374,58536.0,58535.0,0.1706]
[1725282935592,1.89195374,58536.0,58535.0,0.0716]
[1725282935827,1.89195374,58536.0,58535.0,0.1716]
[1725282936725,1.89195374,58536.0,58535.0,0.0716]
[1725282937408,1.89295374,58536.0,58535.0,0.0716]
[1725282937668,1.55128374,58536.0,58535.0,0.0716]
[1725282938134,1.57669736,58536.0,58535.0,0.0716]
[1725282938367,1.57377029,58536.0,58535.0,0.1626]
[1725282938584,1.57377029,58536.0,58535.0,0.2626]
[1725282942948,1.40293529,58536.0,58535.0,0.2626]
[1725282943436,1.57377029,58536.0,58535.0,0.2626]
[1725282945212,1.20668667,58536.0,58535.0,0.2626]
[1725282957453,1.54935667,58536.0,58535.0,0.103]
[1725282957719,1.55128374,58536.0,58535.0,0.103]
[1725282958785,1.55128374,58536.0,58535.0,0.003]
[1725282959526,2.04605374,58536.0,58535.0,0.003]
[1725282960391,1.55128374,58536.0,58535.0,0.003]
[1725282960864,1.55128374,58536.0,58535.0,0.1643]
[1725282961099,1.55128374,58536.0,58535.0,0.2643]
[1725282961827,1.54835667,58536.0,58535.0,0.2643]
[1725282962992,1.20668667,58536.0,58535.0,0.2643]
[1725282963447,0.86501667,58536.0,58535.0,0.2873]
[1725282963665,0.52334667,58536.0,58535.0,0.2873]
[1725282964146,0.01084167,58536.0,58535.0,0.2873]
[1725282964361,0.18167667,58536.0,58535.0,0.2873]
[1725282964823,0.01084167,58536.0,58535.0,0.46155346]
[1725282965040,0.01084167,58536.0,58535.0,1.150487]
[1725282965292,0.002,58536.0,58535.0,0.808812]
[1725282965751,0.001,58536.0,58535.0,1.149487]
[1725282965983,0.170816,58543.0,58541.0,0.1577]
[1725282966220,0.170816,58543.0,58542.0,0.2087]
[1725282966459,0.170816,58543.0,58542.0,0.2077]
[1725282966936,0.512445,58543.0,58542.0,0.2077]
[1725282967178,0.513445,58543.0,58542.0,0.2077]
[1725282967645,0.512445,58543.0,58542.0,0.2077]
[1725282968110,0.513445,58543.0,58542.0,0.2147]
[1725282969286,0.513445,58543.0,58542.0,0.2982]
[1725282969287,0.514445,58543.0,58542.0,0.2982]
[1725282970958,0.856074,58543.0,58542.0,0.2982]
[1725282971654,0.52331468,58543.0,58542.0,0.9982]
[1725282972744,0.86494368,58543.0,58542.0,0.9982]
[1725282973217,1.20657268,58543.0,58542.0,0.9772]
[1725282973447,1.20657268,58543.0,58542.0,0.8915]
[1725282973448,1.55012875,58543.0,58542.0,0.8915]
[1725282973670,1.54820168,58543.0,58542.0,0.8915]
[1725282973885,1.55012875,58543.0,58542.0,0.8915]
[1725282974333,1.55012875,58543.0,58542.0,0.1915]
[1725282974569,1.55012875,58543.0,58542.0,0.0915]
[1725282974789,1.55012875,58543.0,58542.0,0.1915]
[1725282975922,1.54820168,58543.0,58542.0,0.1915]
[1725282976135,1.55012875,58543.0,58542.0,0.1915]
[1725282976354,1.55012875,58543.0,58542.0,0.122]
[1725282976574,1.54820168,58543.0,58542.0,0.122]
[1725282977323,1.54920168,58543.0,58542.0,0.122]
[1725282977538,1.54920168,58543.0,58542.0,0.022]
[1725282977769,1.54920168,58543.0,58542.0,0.122]
[1725282978869,1.54920168,58543.0,58542.0,0.022]
[1725282980390,1.55112875,58543.0,58542.0,0.022]
[1725282980807,1.54920168,58543.0,58542.0,0.022]
[1725282982827,1.55112875,58543.0,58542.0,0.022]
[1725282983819,0.01086968,58543.0,58542.0,0.209]
[1725282984043,0.01086968,58543.0,58542.0,0.31241593]
[1725282984269,0.01086968,58543.0,58542.0,0.32141593]
[1725282984499,0.002,58543.0,58542.0,0.49223293]
[1725282984730,0.002,58543.0,58542.0,0.32141593]
[1725282984986,0.002,58543.0,58542.0,1.19223293]
[1725282985893,0.002,58543.0,58542.0,1.188817]
[1725282986360,0.002,58543.0,58542.0,1.018]
[1725282987269,0.002,58543.0,58542.0,1.188817]
[1725282988414,0.002,58543.0,58542.0,1.530452]
[1725282989102,0.002,58543.0,58542.0,2.3104095]
[1725282989358,0.170766,58560.0,58552.0,0.686464]
[1725282989606,0.00192707,58572.0,58552.0,1.87104]
[1725282989886,0.170741,58569.0,58552.0,3.0572337]
[1725282990145,0.341475,58570.0,58552.0,2.980616]
[1725282990146,0.341476,58570.0,58552.0,2.980616]
[1725282990352,0.170749,58566.0,58552.0,2.980616]
[1725282990579,0.170751,58565.0,58552.0,2.980616]
[1725282991013,0.170751,58565.0,58552.0,2.979616]
[1725282991667,0.170751,58565.0,58552.0,3.03059937]
[1725282991803,0.170753,58564.0,58552.0,3.03059937]
[1725282992225,0.341492,58567.0,58552.0,3.03059937]
[1725282992434,0.341492,58567.0,58552.0,2.979616]
[1725282992675,0.170751,58565.0,58552.0,2.979616]
[1725282992909,0.341506,58565.0,58552.0,2.979616]
[1725282993127,0.170754,58564.0,58552.0,2.993616]
[1725282993344,0.170754,58564.0,58552.0,3.007616]
[1725282996779,0.170758,58563.0,58552.0,3.007616]
[1725282997419,0.170758,58563.0,58552.0,3.775616]
[1725282999455,0.170753,58564.0,58552.0,3.775616]
[1725283000554,0.341506,58565.0,58552.0,3.775616]
[1725283000555,0.341504,58565.0,58552.0,3.87350506]
[1725283000780,0.341504,58565.0,58552.0,3.775616]
[1725283001243,0.341504,58565.0,58552.0,3.844084]
[1725283001478,0.170756,58563.0,58552.0,3.844084]
[1725283003634,0.17076,58562.0,58552.0,3.844084]
[1725283004145,0.0706,58565.0,58552.0,2.625568]
[1725283004359,0.34155,58557.0,58552.0,2.5571]
[1725283004571,0.17078,58555.0,58552.0,2.5571]
[1725283004783,0.170783,58554.0,58552.0,2.5571]
[1725283005432,0.341562,58555.0,58552.0,2.5801]
[1725283005433,0.1876392,58553.0,58552.0,2.5801]
[1725283005854,0.0168542,58553.0,58552.0,2.5801]
[1725283006074,0.00890109,58553.0,58552.0,2.5801]
[1725283006518,0.00890109,58553.0,58552.0,2.750888]
[1725283009062,0.00890109,58553.0,58552.0,3.43404]
[1725283011345,0.17968609,58553.0,58552.0,2.5621]
[1725283011581,0.00890109,58553.0,58552.0,2.5601]
[1725283011812,0.00890109,58553.0,58552.0,2.5801]
[1725283012272,0.17968609,58553.0,58552.0,2.5521]
[1725283012749,0.1876392,58553.0,58552.0,2.5521]
[1725283013258,0.17968609,58553.0,58552.0,2.5521]
[1725283013501,0.17968609,58553.0,58552.0,2.56810378]
[1725283014175,0.86282609,58553.0,58552.0,0.93500378]
[1725283014422,1.20439609,58553.0,58552.0,1.596]
[1725283014647,1.21234504,58553.0,58552.0,1.596]
[1725283015590,1.21234504,58553.0,58552.0,1.605]
[1725283015812,1.21234504,58553.0,58552.0,1.591]
[1725283016023,1.21234504,58553.0,58552.0,1.619]
[1725283019820,0.87077504,58553.0,58552.0,1.619]
[1725283020039,0.87077504,58553.0,58552.0,1.6945]
[1725283020794,0.01685004,58553.0,58552.0,0.9345]
[1725283021685,0.01685004,58553.0,58552.0,1.105288]
[1725283021981,0.01685004,58553.0,58552.0,1.446864]
[1725283022217,0.01685004,58553.0,58552.0,1.534664]
[1725283022374,0.00890109,58553.0,58552.0,1.534664]
[1725283024629,0.351385,58585.0,58555.0,0.008]
[1725283024857,0.170775,58557.0,58556.0,0.023]
[1725283025082,0.170775,58557.0,58556.0,0.123]
[1725283025293,0.853869,58557.0,58556.0,0.123]
[1725283025510,0.853869,58557.0,58556.0,0.1]
[1725283025743,1.20333798,58557.0,58556.0,0.1]
[1725283025964,1.20333798,58557.0,58556.0,0.8]
[1725283026178,1.20333798,58557.0,58556.0,0.814]
[1725283026877,1.20333798,58557.0,58556.0,0.851]
[1725283028037,1.20526505,58557.0,58556.0,0.851]
[1725283030509,1.26946505,58557.0,58556.0,0.851]
[1725283030966,1.26946505,58557.0,58556.0,0.151]
[1725283031196,1.26946505,58557.0,58556.0,0.028]
[1725283037733,1.61101205,58557.0,58556.0,0.028]
[1725283040395,1.61301205,58557.0,58556.0,0.028]
[1725283041769,1.57789605,58557.0,58556.0,0.028]
[1725283044201,1.51369605,58557.0,58556.0,0.028]
[1725283050987,1.51369605,58557.0,58556.0,0.0973]
[1725283050988,0.82667498,58557.0,58556.0,0.0973]
[1725283051221,0.48512798,58557.0,58556.0,0.1203]
[1725283051481,0.48512798,58557.0,58556.0,0.2203]
[1725283053811,0.48512798,58557.0,58556.0,1.181376]
[1725283053812,0.00792198,58557.0,58556.0,1.181376]
[1725283054112,0.00792198,58557.0,58556.0,1.530929]
[1725283054203,0.17076,58562.0,58558.0,0.008]
[1725283054421,0.17076,58562.0,58560.0,0.0696]
[1725283054636,0.00784831,58561.0,58560.0,0.0696]
[1725283054873,0.00784831,58561.0,58560.0,0.7926]
[1725283055098,0.002,58584.0,58571.0,0.170731]
[1725283055350,0.002,58584.0,58570.0,0.34147]
[1725283055351,0.002,58584.0,58577.0,0.1172544]
[1725283055572,0.17071,58579.0,58578.0,0.1]
[1725283055790,0.17071,58579.0,58578.0,0.123]
[1725283056012,0.512129,58579.0,58578.0,0.123]
[1725283056942,0.17071,58579.0,58578.0,0.123]
[1725283057182,0.17071,58579.0,58578.0,0.137]
[1725283057448,0.17071,58579.0,58578.0,0.123]
[1725283057895,0.17071,58579.0,58578.0,0.037]
[1725283058111,0.17071,58579.0,58578.0,0.05]
[1725283058542,0.170704,58581.0,58578.0,0.05]
[1725283058776,0.170708,58580.0,58579.0,0.0867]
[1725283058995,0.170708,58580.0,58579.0,0.2571]
[1725283060121,0.341402,58582.0,58579.0,0.2711]
[1725283060351,0.341402,58582.0,58579.0,0.9711]
[1725283060833,0.170703,58581.0,58579.0,0.9711]
[1725283061047,0.341399,58583.0,58579.0,0.9711]
[1725283061048,0.170699,58583.0,58580.0,0.023]
[1725283061262,0.170699,58583.0,58580.0,0.123]
[1725283061704,0.00590267,58582.0,58580.0,0.123]
[1725283061933,0.17660367,58582.0,58580.0,0.823]
[1725283062555,0.00590267,58582.0,58580.0,0.823]
[1725283063495,0.00590267,58582.0,58580.0,0.837]
[1725283063717,0.00590267,58582.0,58580.0,1.007706]
[1725283063948,0.170696,58584.0,58580.0,1.007706]
[1725283064158,0.00594216,58581.0,58580.0,1.020706]
[1725283064409,0.170696,58584.0,58580.0,1.020706]
[1725283064654,0.00594216,58581.0,58580.0,1.007706]
[1725283064882,0.002,58587.0,58580.0,0.851]
[1725283065096,0.170695,58584.0,58580.0,1.021705]
[1725283065321,0.170695,58584.0,58580.0,1.007705]
[1725283066179,0.170695,58584.0,58580.0,0.823]
[1725283066616,0.512072,58586.0,58580.0,0.137]
[1725283066837,0.170693,58585.0,58580.0,0.135]
[1725283067068,0.170696,58584.0,58580.0,0.135]
[1725283067294,0.170702,58582.0,58580.0,0.149]
[1725283067508,0.170696,58584.0,58580.0,0.149]
[1725283067758,0.170698,58583.0,58580.0,0.137]
[1725283067979,0.002,58587.0,58580.0,0.137]
[1725283067980,0.002,58587.0,58580.0,0.147]
[1725283068237,0.1707,58582.0,58580.0,0.147]
[1725283068452,0.170699,58583.0,58580.0,0.137]
[1725283068675,0.170701,58582.0,58580.0,0.137]
[1725283069329,0.170701,58582.0,58580.0,0.123]
[1725283069781,0.341364,58589.0,58581.0,0.1556]
[1725283069999,0.341364,58589.0,58583.0,0.0708]
[1725283070000,0.170692,58585.0,58583.0,0.0708]
[1725283070225,0.170692,58585.0,58584.0,0.023]
[1725283070439,0.341376,58587.0,58584.0,0.023]
[1725283070669,0.17662643,58585.0,58584.0,0.723]
[1725283070910,0.341376,58587.0,58584.0,0.823]
[1725283071117,0.00593443,58585.0,58584.0,0.823]
[1725283071337,0.17662599,58586.0,58584.0,0.823]
[1725283071574,0.17662643,58585.0,58584.0,0.832]
[1725283071794,0.00593443,58585.0,58584.0,0.846]
[1725283073058,0.00593443,58585.0,58584.0,0.837]
[1725283073685,0.170687,58587.0,58584.0,0.837]
[1725283073895,0.005946,58585.0,58584.0,0.837]
[1725283074116,0.170687,58587.0,58584.0,0.848]
[1725283074344,0.005946,58585.0,58584.0,0.848]
[1725283074552,0.170686,58587.0,58584.0,0.834]
[1725283074816,0.170686,58587.0,58585.0,0.1]
[1725283075018,0.170686,58587.0,58586.0,0.023]
[1725283075866,0.341358,58590.0,58586.0,0.023]
[1725283076087,0.170687,58587.0,58585.0,0.023]
[1725283076737,0.170687,58587.0,58585.0,0.032]
[1725283076963,0.00594871,58586.0,58585.0,0.032]
[1725283077179,0.170687,58587.0,58585.0,0.032]
[1725283077367,0.170687,58587.0,58586.0,0.012]
[1725283077633,0.170689,58586.0,58585.0,0.032]
[1725283077850,0.170689,58586.0,58585.0,0.046]
[1725283078095,0.170689,58586.0,58585.0,0.037]
[1725283078308,0.170689,58586.0,58585.0,0.047]
[1725283079418,0.170689,58586.0,58585.0,0.033]
[1725283079861,0.170689,58586.0,58585.0,0.047]
[1725283080093,0.512067,58586.0,58585.0,0.047]
[1725283081033,0.170689,58586.0,58585.0,0.047]
[1725283084287,0.170669,58593.0,58588.0,0.170682]
[1725283084539,0.00192707,58602.0,58591.0,0.0857]
[1725283084540,0.341316,58597.0,58591.0,0.0857]
[1725283084779,0.341296,58601.0,58592.0,0.0928]
[1725283085043,0.170666,58594.0,58592.0,0.1928]
[1725283085262,0.170668,58593.0,58592.0,0.1928]
[1725283087260,0.170668,58593.0,58592.0,0.2108]
[1725283087733,0.341315,58597.0,58592.0,0.2108]
[1725283087935,0.811168,58623.0,58598.0,0.511962]
[1725283087936,0.341243,58610.0,58598.0,0.511962]
[1725283088191,0.17064,58603.0,58598.0,0.2899]
[1725283088413,0.00192707,58609.0,58598.0,0.2899]
[1725283088631,0.341278,58604.0,58599.0,0.123]
[1725283088869,0.170645,58602.0,58599.0,0.123]
[1725283089080,0.170645,58601.0,58599.0,0.123]
[1725283089508,0.170642,58602.0,58599.0,0.123]
[1725283089952,0.170639,58603.0,58599.0,0.123]
[1725283090234,0.170643,58602.0,58599.0,0.123]